bitfinex/quotes_BTCUSD_20250515
["timestamp","ask_amount","ask_price","bid_price","bid_amount"]
[1747280806274,1.0907097,102810.0,102800.0,0.11]
[1747280806477,1.2774697,102810.0,102800.0,0.11]
[1747280813333,1.26280885,102810.0,102800.0,0.11]
[1747280813550,0.89004885,102810.0,102800.0,0.11]
[1747280813744,1.2773497,102810.0,102800.0,0.11]
[1747280814571,1.3373497,102810.0,102800.0,0.11]
[1747280816161,1.35721408,102810.0,102800.0,0.11]
[1747280821754,1.35785408,102810.0,102800.0,0.11]
[1747280823269,1.36785408,102810.0,102800.0,0.11]
[1747280824407,1.36485408,102810.0,102800.0,0.11]
[1747280824638,1.36985408,102810.0,102800.0,0.11]
[1747280824860,1.36789408,102810.0,102800.0,0.11]
[1747280825075,1.37089408,102810.0,102800.0,0.11]
[1747280825498,0.99745408,102810.0,102800.0,0.11]
[1747280825710,1.37093408,102810.0,102800.0,0.11]
[1747280830280,1.13207408,102810.0,102800.0,0.11]
[1747280830503,0.84864468,102810.0,102800.0,0.11]
[1747280830734,1.23688468,102810.0,102800.0,0.11]
[1747280830938,1.23692468,102810.0,102800.0,0.11]
[1747280832072,1.14891383,102810.0,102800.0,0.11]
[1747280832281,1.14891383,102810.0,102800.0,0.1263]
[1747280832505,1.24622323,102810.0,102800.0,0.1263]
[1747280833284,1.14891383,102810.0,102800.0,0.1263]
[1747280833686,1.14963383,102810.0,102800.0,0.1263]
[1747280835651,1.14963383,102810.0,102800.0,0.11]
[1747280836920,1.16493383,102810.0,102800.0,0.11]
[1747280837131,1.19527468,102810.0,102800.0,0.11]
[1747280837348,1.29258408,102810.0,102800.0,0.11]
[1747280838621,1.36093408,102810.0,102800.0,0.11]
[1747280841638,0.97705408,102810.0,102800.0,0.11]
[1747280841858,1.33521408,102810.0,102800.0,0.11]
[1747280842517,1.35041408,102810.0,102800.0,0.11]
[1747280842727,1.35053408,102810.0,102800.0,0.11]
[1747280845674,0.97645408,102810.0,102800.0,0.11]
[1747280845886,1.35029408,102810.0,102800.0,0.11]
[1747280853163,1.77057408,102810.0,102800.0,0.11]
[1747280853384,1.74007408,102810.0,102800.0,0.11]
[1747280853562,1.36623408,102810.0,102800.0,0.11]
[1747280853770,1.25438383,102810.0,102800.0,0.11]
[1747280853991,1.62830383,102810.0,102800.0,0.1258]
[1747280855947,1.62830383,102810.0,102800.0,0.11]
[1747280856966,1.67434468,102810.0,102800.0,0.11]
[1747280858794,1.30042468,102810.0,102800.0,0.11]
[1747280859003,1.77145408,102810.0,102800.0,0.11]
[1747280861757,1.36809323,102810.0,102800.0,0.11]
[1747280861973,1.62798383,102810.0,102800.0,0.11]
[1747280864176,1.62794383,102810.0,102800.0,0.1259]
[1747280864603,1.25438383,102810.0,102800.0,0.1259]
[1747280864828,1.62762383,102810.0,102800.0,0.1259]
[1747280865168,1.72493323,102810.0,102800.0,0.1259]
[1747280866110,1.72493323,102810.0,102800.0,0.11]
[1747280867022,1.25438383,102810.0,102800.0,0.125]
[1747280867195,1.62794383,102810.0,102800.0,0.1405]
[1747280867563,1.62790383,102810.0,102800.0,0.1405]
[1747280869594,1.60072296,102810.0,102800.0,0.1405]
[1747280870424,1.22720296,102810.0,102800.0,0.1405]
[1747280870638,1.60076296,102810.0,102800.0,0.1405]
[1747280871259,1.22720296,102810.0,102800.0,0.1405]
[1747280871433,1.60112296,102810.0,102800.0,0.1405]
[1747280873387,1.59125858,102810.0,102800.0,0.1405]
[1747280878024,0.18984245,102810.0,102800.0,0.15995496]
[1747280878232,0.38437653,102810.0,102800.0,0.1405]
[1747280878436,0.37934451,102810.0,102800.0,0.1405]
[1747280879844,0.37434451,102810.0,102800.0,0.1405]
[1747280879999,0.37334451,102810.0,102800.0,0.1405]
[1747280880215,0.37434451,102810.0,102800.0,0.1405]
[1747280886687,0.37434451,102810.0,102800.0,0.125]
[1747280886910,0.37434451,102810.0,102800.0,0.11]
[1747280887497,0.44203713,102810.0,102800.0,0.11]
[1747280887698,0.39054451,102810.0,102800.0,0.11]
[1747280887938,0.76522451,102810.0,102800.0,0.11]
[1747280888136,0.74902451,102810.0,102800.0,0.11]
[1747280888341,0.76412451,102810.0,102800.0,0.11]
[1747280888909,0.78002451,102810.0,102800.0,0.11]
[1747280889151,0.87733391,102810.0,102800.0,0.11]
[1747280889346,0.78002451,102810.0,102800.0,0.11]
[1747280891730,0.78034451,102810.0,102800.0,0.11]
[1747280892168,0.38944451,102810.0,102800.0,0.11]
[1747280892380,0.76456451,102810.0,102800.0,0.11]
[1747280892954,0.87807391,102810.0,102800.0,0.11]
[1747280893375,0.78076451,102810.0,102800.0,0.11]
[1747280893608,0.37434451,102810.0,102800.0,0.11]
[1747280893809,0.37434451,102810.0,102800.0,0.1251]
[1747280894199,0.56346451,102810.0,102800.0,0.11]
[1747280894408,0.78432451,102810.0,102800.0,0.11]
[1747280894614,0.7841928,102810.0,102800.0,0.11]
[1747280895448,1.1241928,102810.0,102800.0,0.11]
[1747280900301,1.13873365,102810.0,102800.0,0.11]
[1747280903375,1.14085365,102810.0,102800.0,0.11]
[1747280903586,0.76045365,102810.0,102800.0,0.11]
[1747280903747,1.14081365,102810.0,102800.0,0.11]
[1747280904200,1.23812305,102810.0,102800.0,0.11]
[1747280905555,1.14081365,102810.0,102800.0,0.11]
[1747280905776,1.14581022,102810.0,102800.0,0.11]
[1747280906187,1.15563079,102810.0,102800.0,0.11]
[1747280906603,1.21400079,102810.0,102800.0,0.11]
[1747280908572,0.83364079,102810.0,102800.0,0.11]
[1747280908767,1.31155019,102810.0,102800.0,0.11]
[1747280910733,1.31135019,102810.0,102800.0,0.11]
[1747280913222,1.00821994,102810.0,102800.0,0.11]
[1747280913438,1.12492994,102810.0,102800.0,0.11]
[1747280913628,0.74452994,102810.0,102800.0,0.11]
[1747280913828,1.12492994,102810.0,102800.0,0.11]
[1747280914887,0.91052937,102810.0,102800.0,0.1405]
[1747280916628,0.91052937,102810.0,102800.0,0.125]
[1747280922664,0.37920937,102810.0,102800.0,0.1415]
[1747280924503,0.2769034,102810.0,102800.0,0.34578014]
[1747280924728,0.2769034,102810.0,102800.0,0.35550767]
[1747280924941,0.2769034,102810.0,102800.0,0.3652351]
[1747280925155,0.2769034,102810.0,102800.0,0.35550767]
[1747280925373,0.2866296,102810.0,102800.0,0.37496225]
[1747280925585,0.2866296,102810.0,102800.0,0.35550767]
[1747280925790,0.2769034,102810.0,102800.0,0.36523501]
[1747280926414,0.2769034,102810.0,102800.0,0.35550767]
[1747280927487,0.2769034,102810.0,102800.0,0.36523501]
[1747280927942,0.2769034,102810.0,102800.0,0.35550767]
[1747280928330,0.2749034,102810.0,102800.0,0.35550767]
[1747280928804,0.2739034,102810.0,102800.0,0.35650767]
[1747280929014,0.2739034,102810.0,102800.0,0.35850767]
[1747280929879,0.08922676,102810.0,102800.0,0.37796187]
[1747280930041,0.03895325,102810.0,102800.0,0.37796187]
[1747280930239,0.02922676,102810.0,102800.0,0.37796187]
[1747280930438,0.03895325,102810.0,102800.0,0.37796187]
[1747280931724,0.01950037,102810.0,102800.0,0.37796187]
[1747280931948,0.02922676,102810.0,102800.0,0.37796187]
[1747280932172,0.03895325,102810.0,102800.0,0.37796187]
[1747280933062,0.02922667,102810.0,102800.0,0.37796187]
[1747280933308,0.03895306,102810.0,102800.0,0.37796187]
[1747280933536,0.04867955,102810.0,102800.0,0.37796187]
[1747280934367,0.04868021,102810.0,102800.0,0.37796187]
[1747280936574,0.04868021,102810.0,102800.0,0.37796206]
[1747280936575,0.24321438,102810.0,102800.0,0.37796206]
[1747280936800,0.24321438,102810.0,102800.0,0.38768911]
[1747280937239,0.23348808,102810.0,102800.0,0.38768911]
[1747280938606,0.00977435,102810.0,102800.0,0.38768845]
[1747280938809,0.01950065,102810.0,102800.0,0.38768845]
[1747280939802,0.01950065,102810.0,102800.0,0.62768845]
[1747280941468,0.00977435,102810.0,102800.0,0.62768845]
[1747280941677,0.00977435,102810.0,102800.0,0.61768845]
[1747280941818,0.00977416,102810.0,102800.0,0.61768845]
[1747280942022,4.834e-05,102810.0,102800.0,0.61768845]
[1747280942258,4.834e-05,102810.0,102800.0,1.1406387]
[1747280943298,0.00977416,102810.0,102800.0,1.1406387]
[1747280945200,0.01950017,102810.0,102800.0,1.1406387]
[1747280945671,4.834e-05,102810.0,102800.0,1.4806387]
[1747280948264,4.834e-05,102810.0,102800.0,1.4786387]
[1747280948681,4.834e-05,102810.0,102800.0,1.4836387]
[1747280949105,4.834e-05,102810.0,102800.0,1.4826387]
[1747280949358,4.834e-05,102810.0,102800.0,1.4866387]
[1747280953287,0.00977426,102810.0,102800.0,1.4866387]
[1747280953999,0.00977416,102810.0,102800.0,1.4866387]
[1747280954229,0.01950017,102810.0,102800.0,1.4866387]
[1747280954436,0.02922628,102810.0,102800.0,1.4866387]
[1747280954650,0.03895248,102810.0,102800.0,1.6766787]
[1747280954866,0.01950017,102810.0,102800.0,1.6766787]
[1747280955069,0.02922628,102810.0,102800.0,1.8667587]
[1747280955279,0.01950017,102810.0,102800.0,1.8667587]
[1747280955465,0.02922637,102810.0,102800.0,1.8667587]
[1747280956036,0.01950017,102810.0,102800.0,1.8667587]
[1747280956244,0.02922637,102810.0,102800.0,1.8667587]
[1747280957259,0.02922637,102810.0,102800.0,1.6601787]
[1747280957528,0.03895267,102810.0,102800.0,1.8500587]
[1747280957709,0.23348694,102810.0,102800.0,1.33356149]
[1747280957935,0.04868002,102810.0,102800.0,1.71344149]
[1747280958143,0.03895334,102810.0,102800.0,1.72316845]
[1747280958997,0.02922685,102810.0,102800.0,1.72316845]
[1747280959856,0.03895343,102810.0,102800.0,1.72316845]
[1747280960283,0.03895334,102810.0,102800.0,1.72316845]
[1747280960478,0.02922685,102810.0,102800.0,1.72316845]
[1747280961384,0.01950055,102810.0,102800.0,1.72316845]
[1747280961595,0.01950055,102810.0,102800.0,1.73976845]
[1747280963140,0.00977435,102810.0,102800.0,1.73976845]
[1747280963519,0.01950055,102810.0,102800.0,1.73976845]
[1747280963731,0.00977435,102810.0,102800.0,1.73976845]
[1747280964143,0.01950046,102810.0,102800.0,1.73976845]
[1747280964718,0.01950046,102810.0,102800.0,1.72316845]
[1747280965159,0.00977435,102810.0,102800.0,1.72316845]
[1747280965400,0.00977435,102810.0,102800.0,1.73976845]
[1747280965621,0.00977426,102810.0,102800.0,1.73976845]
[1747280966258,0.01950027,102810.0,102800.0,1.73976845]
[1747280966466,0.00977426,102810.0,102800.0,1.73976845]
[1747280968301,0.01950027,102810.0,102800.0,1.72316845]
[1747280968504,0.00977426,102810.0,102800.0,1.72316845]
[1747280969118,4.834e-05,102810.0,102800.0,1.72316845]
[1747280969329,0.00977426,102810.0,102800.0,1.72316845]
[1747280970111,4.834e-05,102810.0,102800.0,1.73876845]
[1747280970315,4.834e-05,102810.0,102800.0,1.35888845]
[1747280970550,4.834e-05,102810.0,102800.0,1.73776845]
[1747280970767,4.834e-05,102810.0,102800.0,1.83507785]
[1747280970972,4.834e-05,102810.0,102800.0,1.85017785]
[1747280972820,4.834e-05,102810.0,102800.0,1.83507785]
[1747280974448,4.834e-05,102810.0,102800.0,1.73507785]
[1747280975818,4.834e-05,102810.0,102800.0,1.7656187]
[1747280981465,4.834e-05,102810.0,102800.0,2.4516187]
[1747280981691,0.11857382,102840.0,102830.0,0.22366898]
[1747280981692,0.07039365,102840.0,102830.0,0.22366898]
[1747280981927,0.34226964,102840.0,102830.0,0.63476917]
[1747280982135,0.34226964,102840.0,102830.0,0.61532045]
[1747280982136,0.32282319,102840.0,102830.0,0.61532045]
[1747280983009,0.32282319,102840.0,102830.0,0.62504504]
[1747280984769,0.32282319,102840.0,102830.0,0.4111]
[1747280984973,0.32282319,102840.0,102830.0,0.61532045]
[1747280985179,0.24547245,102840.0,102830.0,0.61532045]
[1747280985389,0.24547245,102840.0,102830.0,0.4111]
[1747280985605,0.2357489,102840.0,102830.0,0.42082478]
[1747280986162,0.03972441,102830.0,102820.0,0.80367434]
[1747280986577,0.03972441,102830.0,102820.0,0.99207434]
[1747280986997,0.04944872,102830.0,102820.0,1.00179979]
[1747280987616,0.04944815,102830.0,102820.0,1.00279979]
[1747280987821,0.05917256,102830.0,102820.0,1.00379979]
[1747280991639,0.06889715,102830.0,102820.0,1.00379979]
[1747280991807,0.05917256,102830.0,102820.0,1.00379979]
[1747280993055,0.05917246,102830.0,102820.0,1.00379979]
[1747280993466,0.03,102830.0,102820.0,1.00379979]
[1747280994298,0.03,102830.0,102820.0,1.11565004]
[1747280994493,0.04127148,102840.0,102830.0,0.22366898]
[1747280994692,0.0315484,102840.0,102830.0,0.22366898]
[1747280995720,0.0315484,102840.0,102830.0,0.63476898]
[1747280997564,0.0152484,102840.0,102830.0,0.63476898]
[1747280998212,0.0152484,102840.0,102830.0,0.82316898]
[1747280999889,0.04107139,102840.0,102830.0,0.82316898]
[1747281000406,0.04107148,102840.0,102830.0,0.82316898]
[1747281000613,0.04107139,102840.0,102830.0,0.82316898]
[1747281000793,0.05079466,102840.0,102830.0,0.63476898]
[1747281000971,0.05079457,102840.0,102830.0,0.82312898]
[1747281001177,0.06051784,102840.0,102830.0,0.63476898]
[1747281001375,0.06051869,102840.0,102830.0,0.61532045]
[1747281001585,0.05234815,102830.0,102820.0,0.7520333]
[1747281001781,0.05234815,102830.0,102820.0,0.5636733]
[1747281002410,0.06207274,102830.0,102820.0,0.5636733]
[1747281003311,0.06207274,102830.0,102820.0,0.5646733]
[1747281003526,0.06207246,102830.0,102820.0,0.5646733]
[1747281003734,0.07179696,102830.0,102820.0,0.5646733]
[1747281004085,0.07179696,102830.0,102820.0,0.5656733]
[1747281005110,0.0329,102830.0,102820.0,0.5656733]
[1747281005536,0.05991869,102840.0,102830.0,0.22366898]
[1747281005756,0.05019504,102840.0,102830.0,0.22366898]
[1747281005932,0.05991869,102840.0,102830.0,0.22366898]
[1747281006889,0.05019504,102840.0,102830.0,0.22366898]
[1747281007200,0.05991869,102840.0,102830.0,0.22366898]
[1747281007394,0.05019504,102840.0,102830.0,0.22366898]
[1747281007780,0.05991869,102840.0,102830.0,0.22366898]
[1747281007988,0.05991859,102840.0,102830.0,0.22366898]
[1747281008638,0.06964224,102840.0,102830.0,0.22366898]
[1747281008891,0.07936598,102840.0,102830.0,0.22366898]
[1747281009782,0.07936664,102840.0,102830.0,0.22366898]
[1747281012715,0.06964318,102840.0,102830.0,0.21394486]
[1747281012915,0.06964318,102840.0,102830.0,0.22366917]
[1747281014020,0.06964318,102840.0,102830.0,0.23339339]
[1747281016078,0.05991934,102840.0,102830.0,0.24311751]
[1747281017465,0.06964318,102840.0,102830.0,0.24311751]
[1747281017671,0.26412003,102840.0,102830.0,0.23339339]
[1747281018569,0.25439648,102840.0,102830.0,0.21394486]
[1747281019012,0.24467283,102840.0,102830.0,0.21394504]
[1747281019223,0.24467283,102840.0,102830.0,0.22366954]
[1747281022340,0.0328,102830.0,102820.0,0.7511]
[1747281022554,0.22729576,102830.0,102820.0,0.4111]
[1747281022768,0.00972582,102810.0,102800.0,0.62510634]
[1747281022980,0.05105183,102810.0,102800.0,0.34050074]
[1747281023193,0.03445183,102810.0,102800.0,0.55400634]
[1747281023404,0.01945183,102810.0,102800.0,0.21400634]
[1747281023620,0.00972582,102810.0,102800.0,0.55400634]
[1747281023855,0.05105108,102820.0,102810.0,0.34]
[1747281024071,0.05105108,102820.0,102810.0,0.56371268]
[1747281024284,0.05105108,102820.0,102810.0,0.56371278]
[1747281024503,0.05105108,102820.0,102810.0,0.55398667]
[1747281024897,0.05105108,102820.0,102810.0,0.34972668]
[1747281025145,0.24556576,102820.0,102810.0,0.35272668]
[1747281026250,0.24556576,102820.0,102810.0,0.35572668]
[1747281027576,0.24556576,102820.0,102810.0,0.346]
[1747281027997,0.24556576,102820.0,102810.0,0.35572668]
[1747281028216,0.23584031,102820.0,102810.0,0.346]
[1747281028440,0.23584031,102820.0,102810.0,0.35572668]
[1747281028671,0.23584031,102820.0,102810.0,0.36545326]
[1747281028922,0.23584031,102820.0,102810.0,0.55998686]
[1747281029593,0.23584031,102820.0,102810.0,0.35572668]
[1747281029803,0.23584031,102820.0,102810.0,0.35793668]
[1747281030057,0.23584031,102820.0,102810.0,0.36766326]
[1747281030486,0.22611468,102820.0,102810.0,0.34821]
[1747281031090,0.22611468,102820.0,102810.0,0.35793658]
[1747281031504,0.22611468,102820.0,102810.0,0.34821]
[1747281031703,0.22611468,102820.0,102810.0,0.35793668]
[1747281033176,0.22611468,102820.0,102810.0,0.34821]
[1747281035076,0.22611468,102820.0,102810.0,0.35793668]
[1747281036989,0.22611468,102820.0,102810.0,0.36766326]
[1747281037153,0.22611468,102820.0,102810.0,0.37738975]
[1747281037574,0.22611468,102820.0,102810.0,0.57192335]
[1747281042152,0.23584031,102820.0,102810.0,0.58164974]
[1747281047373,0.23584031,102820.0,102810.0,0.59137604]
[1747281047599,0.23584031,102820.0,102810.0,0.58164974]
[1747281048470,0.23572054,102830.0,102820.0,0.20424022]
[1747281049769,0.23572054,102830.0,102820.0,0.19451468]
[1747281049978,0.23572054,102830.0,102820.0,0.20424041]
[1747281050825,0.23572054,102830.0,102820.0,0.20524041]
[1747281051653,0.00972393,102830.0,102820.0,0.23441646]
[1747281051897,0.02917227,102830.0,102820.0,0.23441646]
[1747281052110,0.03889677,102830.0,102820.0,0.23441646]
[1747281052316,0.03889677,102830.0,102820.0,0.47441646]
[1747281053995,0.04862136,102830.0,102820.0,0.47441646]
[1747281054428,0.04862212,102830.0,102820.0,0.47441646]
[1747281054650,0.06432212,102830.0,102820.0,0.47441646]
[1747281055072,0.05459743,102830.0,102820.0,0.47441646]
[1747281055542,0.00972393,102830.0,102820.0,0.43635007]
[1747281055749,0.02917227,102830.0,102820.0,0.77635007]
[1747281055962,0.02917227,102830.0,102820.0,1.01635007]
[1747281056391,0.02917218,102830.0,102820.0,1.01635007]
[1747281056589,0.01944796,102830.0,102820.0,1.01635007]
[1747281056840,0.02917218,102830.0,102820.0,1.21247007]
[1747281057479,0.03889649,102830.0,102820.0,1.21247007]
[1747281057682,0.0157484,102840.0,102830.0,0.23339338]
[1747281057889,0.0449184,102840.0,102830.0,0.23339338]
[1747281058906,0.02547158,102840.0,102830.0,0.23339338]
[1747281059530,0.02647158,102840.0,102830.0,0.23339338]
[1747281060031,0.03619504,102840.0,102830.0,0.23339338]
[1747281060232,0.25011928,102840.0,102830.0,0.22366926]
[1747281060441,0.26551928,102840.0,102830.0,0.22366926]
[1747281060684,0.26551928,102840.0,102830.0,0.20422054]
[1747281060866,0.24607264,102840.0,102830.0,0.21394523]
[1747281061268,0.24607264,102840.0,102830.0,0.22366982]
[1747281061476,0.24607264,102840.0,102830.0,0.62483432]
[1747281062024,0.24607264,102840.0,102830.0,0.63455873]
[1747281062234,0.04187167,102840.0,102830.0,0.63455807]
[1747281062441,0.03619513,102840.0,102830.0,0.63455807]
[1747281063076,0.04591812,102840.0,102830.0,0.63455807]
[1747281063471,0.05564177,102840.0,102830.0,0.63455807]
[1747281064054,0.03021812,102840.0,102830.0,0.63455807]
[1747281064496,0.03994177,102840.0,102830.0,0.63455807]
[1747281065017,0.05494177,102840.0,102830.0,0.63455807]
[1747281066601,0.07074177,102840.0,102830.0,0.63455807]
[1747281067547,0.07074177,102840.0,102830.0,1.04565807]
[1747281070913,0.03549466,102840.0,102830.0,1.04565807]
[1747281071146,0.04521812,102840.0,102830.0,1.04565807]
[1747281071386,0.03549466,102840.0,102830.0,1.04565807]
[1747281071631,0.04521821,102840.0,102830.0,1.04565807]
[1747281072760,0.04521812,102840.0,102830.0,1.04565807]
[1747281072975,0.04521784,102840.0,102830.0,1.04565807]
[1747281073573,0.04521774,102840.0,102830.0,1.04565807]
[1747281073992,0.0010484,102840.0,102830.0,1.14296747]
[1747281074423,0.0010484,102840.0,102830.0,1.38296747]
[1747281075275,4.84e-05,102840.0,102830.0,1.38296747]
[1747281076168,0.00977139,102840.0,102830.0,1.38296747]
[1747281076388,4.84e-05,102840.0,102830.0,1.49750832]
[1747281076603,4.84e-05,102840.0,102830.0,1.51320832]
[1747281076813,4.84e-05,102840.0,102830.0,1.75320832]
[1747281077042,4.84e-05,102840.0,102830.0,1.73750832]
[1747281077286,4.84e-05,102840.0,102830.0,1.75470832]
[1747281077938,0.04032034,102870.0,102850.0,0.20418017]
[1747281078164,0.0695308,102870.0,102860.0,0.22554779]
[1747281078418,0.07925095,102870.0,102860.0,0.21388246]
[1747281078636,0.0792518,102870.0,102860.0,0.22360393]
[1747281078853,0.0695307,102870.0,102860.0,0.23332522]
[1747281079070,0.04036865,102870.0,102860.0,0.23332522]
[1747281079282,0.03468909,102870.0,102860.0,0.23332522]
[1747281079501,0.0152484,102870.0,102860.0,0.23332522]
[1747281079761,0.00976865,102870.0,102860.0,0.23332522]
[1747281079963,0.01948918,102870.0,102860.0,0.47332522]
[1747281080760,0.03528918,102870.0,102860.0,0.47332522]
[1747281081108,0.03628918,102870.0,102860.0,0.47332522]
[1747281081306,0.04600961,102870.0,102860.0,0.47332522]
[1747281081518,0.02148899,102870.0,102860.0,0.47332522]
[1747281081934,0.03120952,102870.0,102860.0,0.47332522]
[1747281082561,0.02140039,102870.0,102860.0,0.47332522]
[1747281082736,0.04084164,102870.0,102860.0,0.23332522]
[1747281083508,0.05604164,102870.0,102860.0,0.23332522]
[1747281083923,0.05404164,102870.0,102860.0,0.47332522]
[1747281084371,0.05404164,102870.0,102860.0,0.47432522]
[1747281084774,0.05404164,102870.0,102860.0,0.27432522]
[1747281084954,0.05404164,102870.0,102860.0,0.46876426]
[1747281085386,0.03460039,102870.0,102860.0,0.46876426]
[1747281085542,0.04432083,102870.0,102860.0,0.46876426]
[1747281085759,0.02488005,102870.0,102860.0,0.46876426]
[1747281085967,0.04432111,102870.0,102860.0,0.46876426]
[1747281086738,0.03460049,102870.0,102860.0,0.46876426]
[1747281086861,0.00968005,102870.0,102860.0,0.22876426]
[1747281087059,0.01940058,102870.0,102860.0,0.22876426]
[1747281087356,0.01940049,102870.0,102860.0,0.46876426]
[1747281087729,0.01940049,102870.0,102860.0,0.47827637]
[1747281087730,0.02912111,102870.0,102860.0,0.47827637]
[1747281088133,0.04562111,102870.0,102860.0,0.47827637]
[1747281089481,0.03590049,102870.0,102860.0,0.47827637]
[1747281089686,0.04562111,102870.0,102860.0,0.47827637]
[1747281090112,0.00968005,102870.0,102860.0,0.47827637]
[1747281090318,0.01940049,102870.0,102860.0,0.23827637]
[1747281090472,0.02912111,102870.0,102860.0,0.23827637]
[1747281090658,0.04412102,102870.0,102860.0,0.23827637]
[1747281090884,0.03440049,102870.0,102860.0,0.47827637]
[1747281091158,0.02468005,102870.0,102860.0,0.47827637]
[1747281091322,0.03440049,102870.0,102860.0,0.47827637]
[1747281092833,0.03440039,102870.0,102860.0,0.47827637]
[1747281093052,0.01940039,102870.0,102860.0,0.47827637]
[1747281093616,0.03510039,102870.0,102860.0,0.47827637]
[1747281093819,0.04482092,102870.0,102860.0,0.23827637]
[1747281094317,0.04482092,102870.0,102860.0,0.47827637]
[1747281094318,0.03510039,102870.0,102860.0,0.47827637]
[1747281094529,0.04482092,102870.0,102860.0,0.47827637]
[1747281096091,0.06002092,102870.0,102860.0,0.47827637]
[1747281096313,0.06974173,102870.0,102860.0,0.86387637]
[1747281096516,0.06974164,102870.0,102860.0,0.47827637]
[1747281096723,0.26420254,102870.0,102860.0,0.46855508]
[1747281096904,0.24476167,102870.0,102860.0,0.46439495]
[1747281097205,0.24476167,102870.0,102860.0,0.47411661]
[1747281097640,0.24476167,102870.0,102860.0,0.88521661]
[1747281098869,0.24476167,102870.0,102860.0,1.07721661]
[1747281099317,0.23504095,102870.0,102860.0,0.67133406]
[1747281099577,0.22532014,102870.0,102860.0,0.80681211]
[1747281099796,0.22532014,102870.0,102860.0,0.42161211]
[1747281100662,0.22532014,102870.0,102860.0,0.01051211]
[1747281102160,0.22532014,102870.0,102860.0,0.02023406]
[1747281102370,0.22532014,102870.0,102860.0,0.22439495]
[1747281102625,0.22532014,102870.0,102860.0,0.01051211]
[1747281113121,0.04062081,102870.0,102860.0,0.23411586]
[1747281113458,0.05034172,102870.0,102860.0,0.23411586]
[1747281114419,0.06006272,102870.0,102860.0,0.23411586]
[1747281114635,0.26420348,102870.0,102860.0,0.22439457]
[1747281114843,0.26420348,102870.0,102860.0,0.23411604]
[1747281117482,0.26420348,102870.0,102860.0,0.22439457]
[1747281117670,0.26420348,102870.0,102860.0,0.23411604]
[1747281120280,0.26420348,102870.0,102860.0,0.22439457]
[1747281120484,0.24476205,102870.0,102860.0,0.22439457]
[1747281121899,0.05034153,102870.0,102860.0,0.23411604]
[1747281122158,0.05034153,102870.0,102860.0,0.24383733]
[1747281122382,0.02542034,102870.0,102860.0,0.24383733]
[1747281122579,0.03981949,102880.0,102870.0,0.22358201]
[1747281122779,0.05925894,102880.0,102870.0,0.22358201]
[1747281123112,0.07869811,102880.0,102870.0,0.22358201]
[1747281123313,0.07869896,102880.0,102870.0,0.22358201]
[1747281123945,0.07969896,102880.0,102870.0,0.2235822]
[1747281124376,0.08069896,102880.0,102870.0,0.23330264]
[1747281125228,0.2751002,102880.0,102870.0,0.2235822]
[1747281125499,0.26538071,102880.0,102870.0,0.2235822]
[1747281128609,0.26538071,102880.0,102870.0,0.21386167]
[1747281128773,0.25566113,102880.0,102870.0,0.21386167]
[1747281130508,0.25566113,102880.0,102870.0,0.2235822]
[1747281131571,0.25566113,102880.0,102870.0,0.21386167]
[1747281132247,0.24594126,102880.0,102870.0,0.20414105]
[1747281132459,0.24594126,102880.0,102870.0,0.21386186]
[1747281133146,0.24594126,102880.0,102870.0,0.20414105]
[1747281133366,0.2362213,102880.0,102870.0,0.20414105]
[1747281134185,0.22650124,102880.0,102870.0,0.20414105]
[1747281135474,0.22650124,102880.0,102870.0,0.21386186]
[1747281136478,0.00972053,102870.0,102860.0,0.84631381]
[1747281136892,0.00972053,102870.0,102860.0,0.46339381]
[1747281137102,0.00972053,102870.0,102860.0,0.84639381]
[1747281137506,0.01944125,102870.0,102860.0,0.84639381]
[1747281137712,0.01944097,102870.0,102860.0,0.84639381]
[1747281137920,0.02916169,102870.0,102860.0,0.84639381]
[1747281138146,0.02916131,102870.0,102860.0,0.84639381]
[1747281138320,0.03888203,102870.0,102860.0,0.84739381]
[1747281141244,0.04860284,102870.0,102860.0,0.84739381]
[1747281142493,0.06420284,102870.0,102860.0,0.46439381]
[1747281142698,0.06420284,102870.0,102860.0,0.84703381]
[1747281142928,0.06420284,102870.0,102860.0,0.46439381]
[1747281143062,0.06420284,102870.0,102860.0,0.84695381]
[1747281143267,0.04860284,102870.0,102860.0,0.8374417]
[1747281143688,0.06520284,102870.0,102860.0,0.8374417]
[1747281146649,0.03888203,102870.0,102860.0,0.8374417]
[1747281146861,0.2452406,102880.0,102870.0,0.21386186]
[1747281147057,0.06055904,102880.0,102870.0,0.21386186]
[1747281147257,0.0702791,102880.0,102870.0,0.22358239]
[1747281147461,0.0702791,102880.0,102870.0,0.23330283]
[1747281148099,0.0722791,102880.0,102870.0,0.23330283]
[1747281148752,0.26668034,102880.0,102870.0,0.23330283]
[1747281149360,0.25696094,102880.0,102870.0,0.20414114]
[1747281149564,0.03544134,102870.0,102860.0,0.8364417]
[1747281149857,0.26530274,102870.0,102860.0,0.4441608]
[1747281150069,0.2555823,102870.0,102860.0,0.59468237]
[1747281150289,0.2555823,102870.0,102860.0,0.60440384]
[1747281151311,0.2555823,102870.0,102860.0,0.60540384]
[1747281151813,0.2555823,102870.0,102860.0,1.01650384]
[1747281152046,0.2555823,102870.0,102860.0,0.6162608]
[1747281152251,0.2555823,102870.0,102860.0,0.62598284]
[1747281152884,0.2555823,102870.0,102860.0,0.6357046]
[1747281153282,0.2555823,102870.0,102860.0,0.64542626]
[1747281153413,0.2555823,102870.0,102860.0,0.65514783]
[1747281153633,0.2555823,102870.0,102860.0,0.65514726]
[1747281153842,0.2653033,102870.0,102860.0,0.65514726]
[1747281155326,0.25558277,102870.0,102860.0,0.64542588]
[1747281155809,0.25558277,102870.0,102860.0,0.65514735]
[1747281156279,0.25558277,102870.0,102860.0,0.63570431]
[1747281156619,0.25558277,102870.0,102860.0,0.64542588]
[1747281157664,0.25558277,102870.0,102860.0,0.23432588]
[1747281160386,0.25558277,102870.0,102860.0,0.24404735]
[1747281165150,0.25558277,102870.0,102860.0,0.47432588]
[1747281166007,0.25558277,102870.0,102860.0,0.48404735]
[1747281166646,0.23614114,102870.0,102860.0,0.241]
[1747281166853,0.23614114,102870.0,102860.0,0.001]
[1747281179444,0.33345054,102870.0,102860.0,0.001]
[1747281180099,0.67345054,102870.0,102860.0,0.001]
[1747281180727,0.22364666,102840.0,102830.0,0.63476898]
[1747281180987,0.25484666,102840.0,102830.0,0.22371738]
[1747281181443,0.2645705,102840.0,102830.0,0.22371738]
[1747281181666,0.25484751,102840.0,102830.0,0.22371738]
[1747281182108,0.25484751,102840.0,102830.0,0.22671738]
[1747281182333,0.24512424,102840.0,102830.0,0.22671738]
[1747281183488,0.22892424,102840.0,102830.0,0.23071738]
[1747281187827,0.21920069,102840.0,102830.0,0.22099297]
[1747281189586,0.23530069,102840.0,102830.0,0.22099297]
[1747281189932,0.23530069,102840.0,102830.0,0.0070484]
[1747281190130,0.22557685,102840.0,102830.0,0.0070484]
[1747281191718,0.32288625,102840.0,102830.0,0.0070484]